[Event "*** Titled Tuesday Blitz"]
[Site "Chess.com"]
[Date "2021.03.30"]
[Round "5"]
[White "Eltaj_Safarli"]
[Black "Hikaru"]
[Result "0-1"]
[WhiteElo "2865"]
[BlackElo "3213"]
[TimeControl "180+1"]
[EndTime "10:53:04 PDT"]
[Termination "Hikaru won by resignation"]

1. e4 {[%clk 0:03:00.9]} 1... d5 {[%clk 0:02:59]} 2. exd5 {[%clk 0:03:00.2]}
2... Qxd5 {[%clk 0:02:59.9]} 3. Nc3 {[%clk 0:03:00.5]} 3... Qa5 {[%clk
0:03:00.5]} 4. g3 {[%clk 0:03:00.4]} 4... c6 {[%clk 0:02:59.6]} 5. Bg2 {[%clk
0:03:00.7]} 5... Nf6 {[%clk 0:03:00.4]} 6. Nge2 {[%clk 0:03:01]} 6... Bf5 {[%clk
0:03:01]} 7. b4 {[%clk 0:02:59.8]} 7... Qc7 {[%clk 0:03:00.9]} 8. Rb1 {[%clk
0:02:57.2]} 8... a6 {[%clk 0:02:57.3]} 9. a4 {[%clk 0:02:57]} 9... e5 {[%clk
0:02:53.2]} 10. b5 {[%clk 0:02:54.6]} 10... Bd6 {[%clk 0:02:49.7]} 11. O-O
{[%clk 0:02:53.7]} 11... O-O {[%clk 0:02:49.6]} 12. d3 {[%clk 0:02:52.2]} 12...
axb5 {[%clk 0:02:45.5]} 13. axb5 {[%clk 0:02:53.1]} 13... Nbd7 {[%clk 0:02:46]}
14. h3 {[%clk 0:02:48.7]} 14... Be6 {[%clk 0:02:37]} 15. f4 {[%clk 0:02:23.9]}
15... exf4 {[%clk 0:02:28.9]} 16. Bxf4 {[%clk 0:02:19.5]} 16... Rfe8 {[%clk
0:02:21.8]} 17. Kh2 {[%clk 0:02:06.6]} 17... Rad8 {[%clk 0:02:17.6]} 18. bxc6
{[%clk 0:01:59.8]} 18... bxc6 {[%clk 0:02:18.5]} 19. Nd4 {[%clk 0:02:00.4]}
19... Bxf4 {[%clk 0:02:13.7]} 20. Rxf4 {[%clk 0:02:01.3]} 20... Ne5 {[%clk
0:02:14.2]} 21. Nxe6 {[%clk 0:01:35.6]} 21... Rxe6 {[%clk 0:02:12.4]} 22. Qd2
{[%clk 0:01:30.9]} 22... Nh5 {[%clk 0:01:55.4]} 23. Rfb4 {[%clk 0:00:32.9]} 0-1

[Event "*** Titled Tuesday Blitz"]
[Site "Chess.com"]
[Date "2021.03.30"]
[Round "5"]
[White "OlifantCZ"]
[Black "suneebaker"]
[Result "0-1"]
[WhiteElo "2298"]
[BlackElo "2138"]
[TimeControl "180+1"]
[EndTime "10:53:10 PDT"]
[Termination "suneebaker won by resignation"]

1. c4 {[%clk 0:03:00.9]} 1... e6 {[%clk 0:02:58.2]} 2. g3 {[%clk 0:02:59.8]}
2... f5 {[%clk 0:02:57.9]} 3. Bg2 {[%clk 0:02:58.8]} 3... Nf6 {[%clk 0:02:58.3]}
4. Nc3 {[%clk 0:02:56.3]} 4... Be7 {[%clk 0:02:58.2]} 5. e3 {[%clk 0:02:55.4]}
5... O-O {[%clk 0:02:57.9]} 6. Nge2 {[%clk 0:02:54.1]} 6... d6 {[%clk
0:02:57.8]} 7. O-O {[%clk 0:02:53.2]} 7... c6 {[%clk 0:02:57.1]} 8. d4 {[%clk
0:02:53.2]} 8... e5 {[%clk 0:02:55.8]} 9. d5 {[%clk 0:02:44.7]} 9... c5 {[%clk
0:02:52.2]} 10. e4 {[%clk 0:02:38.9]} 10... fxe4 {[%clk 0:02:48.5]} 11. Nxe4
{[%clk 0:02:38.3]} 11... Nxe4 {[%clk 0:02:48.9]} 12. Bxe4 {[%clk 0:02:38.4]}
12... Bh3 {[%clk 0:02:48.8]} 13. Bg2 {[%clk 0:02:33.4]} 13... Bxg2 {[%clk
0:02:47.4]} 14. Kxg2 {[%clk 0:02:33.3]} 14... Nd7 {[%clk 0:02:46.9]} 15. f3
{[%clk 0:02:32.4]} 15... Nf6 {[%clk 0:02:44.8]} 16. Nc3 {[%clk 0:02:30.1]} 16...
Qd7 {[%clk 0:02:43.1]} 17. Bg5 {[%clk 0:02:24.1]} 17... Nh5 {[%clk 0:02:33.7]}
18. Be3 {[%clk 0:02:23.2]} 18... Rf7 {[%clk 0:02:23]} 19. Ne4 {[%clk 0:02:22.5]}
19... Raf8 {[%clk 0:02:20.5]} 20. Qe2 {[%clk 0:02:22]} 20... a6 {[%clk
0:02:12.3]} 21. b3 {[%clk 0:02:19.4]} 21... b5 {[%clk 0:02:09.5]} 22. a4 {[%clk
0:02:19.4]} 22... b4 {[%clk 0:02:06.2]} 23. Rf2 {[%clk 0:02:18.7]} 23... h6
{[%clk 0:02:03.6]} 24. Raf1 {[%clk 0:02:17.7]} 24... g5 {[%clk 0:02:03.1]} 25.
g4 {[%clk 0:02:12.2]} 25... Nf4+ {[%clk 0:01:56]} 26. Bxf4 {[%clk 0:02:12.3]}
26... exf4 {[%clk 0:01:55.8]} 27. Qd3 {[%clk 0:02:09.9]} 27... Bf6 {[%clk
0:01:54.9]} 28. Re2 {[%clk 0:02:08.9]} 28... Be5 {[%clk 0:01:53.7]} 29. h4
{[%clk 0:02:04.6]} 29... Rg7 {[%clk 0:01:42.9]} 30. Rh1 {[%clk 0:01:58.5]} 30...
h5 {[%clk 0:01:33.4]} 31. hxg5 {[%clk 0:01:52.9]} 31... hxg4 {[%clk 0:01:31.3]}
32. Rh4 {[%clk 0:01:48.1]} 32... gxf3+ {[%clk 0:01:29.6]} 33. Kxf3 {[%clk
0:01:47.8]} 33... Qf5 {[%clk 0:01:27.1]} 34. Reh2 {[%clk 0:01:33.6]} 34... Rxg5
{[%clk 0:01:26.1]} 35. Rh8+ {[%clk 0:01:31.7]} 35... Bxh8 {[%clk 0:01:24.7]} 36.
Nf6+ {[%clk 0:01:27.5]} 36... Rxf6 {[%clk 0:01:20.5]} 0-1

[Event "*** Titled Tuesday Blitz"]
[Site "Chess.com"]
[Date "2021.03.30"]
[Round "5"]
[White "StockholmMissile"]
[Black "zmeeed67"]
[Result "1-0"]
[WhiteElo "2563"]
[BlackElo "2415"]
[TimeControl "180+1"]
[EndTime "10:53:22 PDT"]
[Termination "StockholmMissile won on time"]

1. d4 {[%clk 0:03:00]} 1... d5 {[%clk 0:02:45.8]} 2. c4 {[%clk 0:02:59.1]} 2...
e6 {[%clk 0:02:46.2]} 3. Nf3 {[%clk 0:02:58.9]} 3... Nf6 {[%clk 0:02:46.4]} 4.
Bg5 {[%clk 0:02:58.5]} 4... Be7 {[%clk 0:02:45.1]} 5. e3 {[%clk 0:02:58.3]} 5...
O-O {[%clk 0:02:44.3]} 6. Qc2 {[%clk 0:02:58]} 6... h6 {[%clk 0:02:43.6]} 7.
Bxf6 {[%clk 0:02:58.4]} 7... Bxf6 {[%clk 0:02:44.5]} 8. h4 {[%clk 0:02:59.1]}
8... c5 {[%clk 0:02:38.3]} 9. g4 {[%clk 0:02:59]} 9... Nc6 {[%clk 0:02:16.8]}
10. g5 {[%clk 0:02:58]} 10... Nb4 {[%clk 0:02:17]} 11. Qb3 {[%clk 0:02:45.2]}
11... hxg5 {[%clk 0:02:15.8]} 12. hxg5 {[%clk 0:02:44.8]} 12... Bxg5 {[%clk
0:02:16.7]} 13. dxc5 {[%clk 0:02:40.8]} 13... Nc6 {[%clk 0:02:02.7]} 14. Nc3
{[%clk 0:02:36]} 14... dxc4 {[%clk 0:01:47.1]} 15. Bxc4 {[%clk 0:02:29.8]} 15...
Bh6 {[%clk 0:01:36.9]} 16. Ke2 {[%clk 0:02:19.9]} 16... Na5 {[%clk 0:01:13.2]}
17. Qb4 {[%clk 0:02:18.8]} 17... Nc6 {[%clk 0:00:32.3]} 18. Qb3 {[%clk
0:02:17.1]} 18... Na5 {[%clk 0:00:32.3]} 19. Qb4 {[%clk 0:02:17.3]} 19... Nc6
{[%clk 0:00:32.4]} 20. Qa4 {[%clk 0:02:17.7]} 20... Bd7 {[%clk 0:00:30.6]} 21.
Qc2 {[%clk 0:02:16.5]} 21... Nb4 {[%clk 0:00:21]} 22. Qe4 {[%clk 0:02:16.4]}
22... Bc6 {[%clk 0:00:17.4]} 23. Qg4 {[%clk 0:02:16.8]} 23... Bd5 {[%clk
0:00:13.7]} 24. Bxd5 {[%clk 0:02:08.7]} 24... Nxd5 {[%clk 0:00:09.7]} 25. Rxh6
{[%clk 0:02:07.4]} 25... Nf6 {[%clk 0:00:03.2]} 26. Qg3 {[%clk 0:02:04.6]} 1-0

[Event "*** Titled Tuesday Blitz"]
[Site "Chess.com"]
[Date "2021.03.30"]
[Round "5"]
[White "frenchpin"]
[Black "rasmussvane"]
[Result "0-1"]
[WhiteElo "2521"]
[BlackElo "2895"]
[TimeControl "180+1"]
[EndTime "10:53:42 PDT"]
[Termination "rasmussvane won by resignation"]

1. e4 {[%clk 0:03:00.9]} 1... c6 {[%clk 0:02:58.4]} 2. d4 {[%clk 0:03:00.5]}
2... d5 {[%clk 0:02:59.3]} 3. Nc3 {[%clk 0:03:01]} 3... dxe4 {[%clk 0:02:59.8]}
4. Nxe4 {[%clk 0:03:01.9]} 4... Nf6 {[%clk 0:03:00.5]} 5. Nxf6+ {[%clk
0:03:01.9]} 5... exf6 {[%clk 0:03:01.4]} 6. c3 {[%clk 0:03:01.1]} 6... Bd6
{[%clk 0:03:02.3]} 7. Bd3 {[%clk 0:03:01]} 7... O-O {[%clk 0:03:03.2]} 8. Qc2
{[%clk 0:03:00.8]} 8... Re8+ {[%clk 0:03:04.1]} 9. Be3 {[%clk 0:02:59.7]} 9...
h5 {[%clk 0:03:05]} 10. Ne2 {[%clk 0:02:59]} 10... Nd7 {[%clk 0:03:04.1]} 11.
O-O {[%clk 0:02:55.2]} 11... Nf8 {[%clk 0:03:02.2]} 12. Rae1 {[%clk 0:02:51.5]}
12... h4 {[%clk 0:03:02.4]} 13. h3 {[%clk 0:02:51.1]} 13... Be6 {[%clk
0:03:02.8]} 14. Nf4 {[%clk 0:02:35.8]} 14... Bd7 {[%clk 0:02:31.3]} 15. Bc4
{[%clk 0:02:28.1]} 15... Qc7 {[%clk 0:02:25.6]} 16. Ng6 {[%clk 0:02:19.5]} 16...
Nxg6 {[%clk 0:02:06]} 17. Qxg6 {[%clk 0:02:20.4]} 17... Be6 {[%clk 0:02:06.5]}
18. Bxe6 {[%clk 0:02:17.5]} 18... Rxe6 {[%clk 0:02:07.4]} 19. Qg4 {[%clk
0:02:11.3]} 19... Rae8 {[%clk 0:02:06.4]} 20. Bd2 {[%clk 0:01:55.6]} 20... Qa5
{[%clk 0:01:49.2]} 21. Rxe6 {[%clk 0:01:43.2]} 21... Rxe6 {[%clk 0:01:50.1]} 22.
Re1 {[%clk 0:01:40.3]} 22... Rxe1+ {[%clk 0:01:37.1]} 23. Bxe1 {[%clk
0:01:41.2]} 23... Qxa2 {[%clk 0:01:37.7]} 24. Qc8+ {[%clk 0:01:38.3]} 24... Bf8
{[%clk 0:01:37.8]} 25. Qxb7 {[%clk 0:01:32.5]} 25... Qb1 {[%clk 0:01:37.7]} 26.
Kf1 {[%clk 0:01:21.3]} 26... Qd3+ {[%clk 0:01:36.6]} 27. Kg1 {[%clk 0:01:21.8]}
27... Qe2 {[%clk 0:01:37.5]} 28. Kh2 {[%clk 0:01:10.4]} 28... Qxe1 {[%clk
0:01:19.8]} 29. f4 {[%clk 0:01:04.6]} 29... Qg3+ {[%clk 0:01:12.8]} 30. Kg1
{[%clk 0:01:04.3]} 30... Qxf4 {[%clk 0:01:10.9]} 31. Qxc6 {[%clk 0:01:04.2]}
31... Bd6 {[%clk 0:01:06]} 32. Qa8+ {[%clk 0:01:01]} 32... Kh7 {[%clk
0:01:05.7]} 33. Qxa7 {[%clk 0:01:01.6]} 33... Qe3+ {[%clk 0:01:03.3]} 34. Kf1
{[%clk 0:01:00.4]} 34... Bg3 {[%clk 0:01:03.3]} 0-1

[Event "*** Titled Tuesday Blitz"]
[Site "Chess.com"]
[Date "2021.03.30"]
[Round "5"]
[White "AndrewMaco"]
[Black "EvgenyT"]
[Result "0-1"]
[WhiteElo "2625"]
[BlackElo "2916"]
[TimeControl "180+1"]
[EndTime "10:53:44 PDT"]
[Termination "EvgenyT won by resignation"]

1. e4 {[%clk 0:03:00.9]} 1... e6 {[%clk 0:02:59.1]} 2. d4 {[%clk 0:03:00.4]}
2... d5 {[%clk 0:02:59.7]} 3. Nc3 {[%clk 0:03:01]} 3... a6 {[%clk 0:02:59.4]} 4.
Nf3 {[%clk 0:02:55]} 4... Nf6 {[%clk 0:02:58.8]} 5. Bd3 {[%clk 0:02:41.5]} 5...
c5 {[%clk 0:02:57.8]} 6. exd5 {[%clk 0:02:37.1]} 6... exd5 {[%clk 0:02:57.7]} 7.
O-O {[%clk 0:02:36.5]} 7... c4 {[%clk 0:02:54]} 8. Re1+ {[%clk 0:02:30.2]} 8...
Be7 {[%clk 0:02:53.4]} 9. Bf1 {[%clk 0:02:29.8]} 9... Bg4 {[%clk 0:02:49.3]} 10.
h3 {[%clk 0:02:19.8]} 10... Bh5 {[%clk 0:02:49.1]} 11. g4 {[%clk 0:02:19.7]}
11... Bg6 {[%clk 0:02:49]} 12. Ne5 {[%clk 0:02:20.3]} 12... O-O {[%clk
0:02:41.7]} 13. f4 {[%clk 0:02:16]} 13... h6 {[%clk 0:02:29]} 14. Nxg6 {[%clk
0:01:53.6]} 14... fxg6 {[%clk 0:02:28.7]} 15. Bg2 {[%clk 0:01:54.5]} 15... Bb4
{[%clk 0:02:23.3]} 16. Bd2 {[%clk 0:01:44.5]} 16... Nc6 {[%clk 0:02:20.3]} 17.
a3 {[%clk 0:01:41.8]} 17... Bxc3 {[%clk 0:02:19.2]} 18. Bxc3 {[%clk 0:01:42.7]}
18... Qd6 {[%clk 0:02:16.4]} 19. Re5 {[%clk 0:01:19.4]} 19... Ne4 {[%clk
0:02:14.2]} 20. Bxe4 {[%clk 0:01:16.3]} 20... dxe4 {[%clk 0:02:14.1]} 21. Rxe4
{[%clk 0:01:16.7]} 21... Rxf4 {[%clk 0:02:13.7]} 22. Qe1 {[%clk 0:00:52.8]}
22... Raf8 {[%clk 0:02:07.3]} 23. Rxf4 {[%clk 0:00:29.2]} 23... Qxf4 {[%clk
0:02:05.7]} 24. Qe2 {[%clk 0:00:29.7]} 24... Qg3+ {[%clk 0:02:01.5]} 25. Qg2
{[%clk 0:00:27.9]} 25... Qe3+ {[%clk 0:02:01.6]} 26. Kh1 {[%clk 0:00:26.4]}
26... Rf2 {[%clk 0:01:58.5]} 27. Re1 {[%clk 0:00:23.4]} 27... Qf4 {[%clk
0:01:48.8]} 28. Re4 {[%clk 0:00:02.8]} 28... Rf1+ {[%clk 0:01:46.8]} 0-1

[Event "*** Titled Tuesday Blitz"]
[Site "Chess.com"]
[Date "2021.03.30"]
[Round "5"]
[White "PawnEatingZombie"]
[Black "Romadk"]
[Result "1/2-1/2"]
[WhiteElo "2185"]
[BlackElo "2305"]
[TimeControl "180+1"]
[EndTime "10:53:49 PDT"]
[Termination "Game drawn by repetition"]

1. d4 {[%clk 0:03:00.9]} 1... Nf6 {[%clk 0:02:56.7]} 2. c4 {[%clk 0:03:00.8]}
2... e6 {[%clk 0:02:56.1]} 3. Nc3 {[%clk 0:02:59.6]} 3... Bb4 {[%clk 0:02:56.4]}
4. Qc2 {[%clk 0:03:00]} 4... O-O {[%clk 0:02:55.6]} 5. e4 {[%clk 0:02:57.9]}
5... Nc6 {[%clk 0:02:54.6]} 6. e5 {[%clk 0:02:33.7]} 6... Ne8 {[%clk 0:02:53]}
7. Nf3 {[%clk 0:02:32.8]} 7... f6 {[%clk 0:02:51.9]} 8. Bd3 {[%clk 0:02:31.2]}
8... g6 {[%clk 0:02:46.1]} 9. h4 {[%clk 0:02:07.7]} 9... fxe5 {[%clk 0:02:45]}
10. dxe5 {[%clk 0:02:07.6]} 10... Rxf3 {[%clk 0:02:36.6]} 11. gxf3 {[%clk
0:02:06.8]} 11... Nxe5 {[%clk 0:02:37.5]} 12. Qe2 {[%clk 0:01:29.2]} 12... Qf6
{[%clk 0:02:29.1]} 13. f4 {[%clk 0:01:29.2]} 13... Nf3+ {[%clk 0:02:22.6]} 14.
Qxf3 {[%clk 0:01:21.8]} 14... Bxc3+ {[%clk 0:02:22.2]} 15. Kf1 {[%clk
0:01:16.8]} 15... Bxb2 {[%clk 0:02:18.9]} 16. Bxb2 {[%clk 0:01:14.4]} 16... Qxb2
{[%clk 0:02:19.8]} 17. Kg2 {[%clk 0:01:12.9]} 17... Rb8 {[%clk 0:02:09.8]} 18.
h5 {[%clk 0:01:12.3]} 18... b5 {[%clk 0:02:09]} 19. hxg6 {[%clk 0:01:06.6]}
19... Nf6 {[%clk 0:02:08]} 20. gxh7+ {[%clk 0:01:04.9]} 20... Kh8 {[%clk
0:02:08.1]} 21. Qe2 {[%clk 0:00:43.3]} 21... Bb7+ {[%clk 0:02:06.1]} 22. f3
{[%clk 0:00:43.7]} 22... Qd4 {[%clk 0:01:59.1]} 23. Qe5 {[%clk 0:00:34.9]} 23...
Bxf3+ {[%clk 0:01:52]} 24. Kxf3 {[%clk 0:00:24.9]} 24... Qxd3+ {[%clk
0:01:51.5]} 25. Kf2 {[%clk 0:00:20.5]} 25... Qd2+ {[%clk 0:01:48]} 26. Kf3
{[%clk 0:00:20.3]} 26... Qd3+ {[%clk 0:01:46]} 27. Kf2 {[%clk 0:00:20.2]} 27...
Qd2+ {[%clk 0:01:20.2]} 28. Kf3 {[%clk 0:00:20.2]} 28... Qd3+ {[%clk 0:01:19.3]}
1/2-1/2

[Event "*** Titled Tuesday Blitz"]
[Site "Chess.com"]
[Date "2021.03.30"]
[Round "5"]
[White "rugbyclub"]
[Black "Titus369"]
[Result "0-1"]
[WhiteElo "2268"]
[BlackElo "2521"]
[TimeControl "180+1"]
[EndTime "10:53:58 PDT"]
[Termination "Titus369 won by checkmate"]

1. e4 {[%clk 0:02:39.5]} 1... c5 {[%clk 0:02:59.6]} 2. Nc3 {[%clk 0:02:35.7]}
2... Nc6 {[%clk 0:02:58.9]} 3. Bb5 {[%clk 0:02:34]} 3... Nd4 {[%clk 0:02:56.9]}
4. Nf3 {[%clk 0:02:32.2]} 4... e6 {[%clk 0:02:53.8]} 5. O-O {[%clk 0:02:29.5]}
5... a6 {[%clk 0:02:45]} 6. Bd3 {[%clk 0:02:27.9]} 6... Qc7 {[%clk 0:02:41.6]}
7. Nxd4 {[%clk 0:02:26.3]} 7... cxd4 {[%clk 0:02:42.5]} 8. Ne2 {[%clk
0:02:26.6]} 8... Bc5 {[%clk 0:02:40.6]} 9. b3 {[%clk 0:02:08.5]} 9... Ne7 {[%clk
0:02:39.6]} 10. Bb2 {[%clk 0:02:08.8]} 10... Nc6 {[%clk 0:02:39.6]} 11. a3
{[%clk 0:02:07.6]} 11... b5 {[%clk 0:02:38.6]} 12. f4 {[%clk 0:02:04.3]} 12...
O-O {[%clk 0:02:32.7]} 13. Qe1 {[%clk 0:02:00.9]} 13... d6 {[%clk 0:02:22.2]}
14. Qh4 {[%clk 0:01:56.6]} 14... g6 {[%clk 0:02:19.1]} 15. Rf3 {[%clk
0:01:42.9]} 15... f5 {[%clk 0:02:17.7]} 16. Rg3 {[%clk 0:01:31.7]} 16... Bb7
{[%clk 0:02:11.6]} 17. Kh1 {[%clk 0:01:25.3]} 17... Nd8 {[%clk 0:02:00.9]} 18.
exf5 {[%clk 0:01:23.9]} 18... exf5 {[%clk 0:01:58]} 19. Ng1 {[%clk 0:01:23.5]}
19... Ne6 {[%clk 0:01:56.9]} 20. Nf3 {[%clk 0:01:21.9]} 20... Rae8 {[%clk
0:01:52.7]} 21. c3 {[%clk 0:01:08.6]} 21... Qe7 {[%clk 0:01:43.6]} 22. Qh6
{[%clk 0:00:51.9]} 22... dxc3 {[%clk 0:01:30.7]} 23. Bxc3 {[%clk 0:00:49.4]}
23... Bxf3 {[%clk 0:01:29.3]} 24. Rxg6+ {[%clk 0:00:38.2]} 24... hxg6 {[%clk
0:01:21.9]} 25. Qh8+ {[%clk 0:00:26]} 25... Kf7 {[%clk 0:01:15.7]} 26. Qh7+
{[%clk 0:00:25.8]} 26... Ng7 {[%clk 0:01:15.7]} 27. Qxg7+ {[%clk 0:00:24.3]}
27... Ke6 {[%clk 0:01:15.6]} 28. Re1+ {[%clk 0:00:24.2]} 28... Kd7 {[%clk
0:01:12.9]} 29. Rxe7+ {[%clk 0:00:22.9]} 29... Rxe7 {[%clk 0:01:13.8]} 30. Qxf8
{[%clk 0:00:23]} 30... Re1+ {[%clk 0:01:13.1]} 31. Bf1 {[%clk 0:00:22.3]} 31...
Rxf1# {[%clk 0:01:14]} 0-1

[Event "*** Titled Tuesday Blitz"]
[Site "Chess.com"]
[Date "2021.03.30"]
[Round "5"]
[White "Blitzking642"]
[Black "besarquis"]
[Result "0-1"]
[WhiteElo "2429"]
[BlackElo "2264"]
[TimeControl "180+1"]
[EndTime "10:54:01 PDT"]
[Termination "besarquis won by resignation"]

1. e4 {[%clk 0:03:00.9]} 1... c5 {[%clk 0:02:59.9]} 2. Nf3 {[%clk 0:03:00.2]}
2... Nc6 {[%clk 0:03:00.1]} 3. d4 {[%clk 0:03:00.5]} 3... cxd4 {[%clk
0:03:00.6]} 4. Nxd4 {[%clk 0:03:01.3]} 4... Nf6 {[%clk 0:03:00.7]} 5. Nc3 {[%clk
0:03:01.9]} 5... e5 {[%clk 0:03:00.8]} 6. Nf5 {[%clk 0:03:01.8]} 6... d5 {[%clk
0:02:56.7]} 7. exd5 {[%clk 0:03:02.7]} 7... Bxf5 {[%clk 0:02:55.5]} 8. dxc6
{[%clk 0:03:02.8]} 8... Qxd1+ {[%clk 0:02:55.4]} 9. Nxd1 {[%clk 0:03:02.4]} 9...
bxc6 {[%clk 0:02:54.3]} 10. Ne3 {[%clk 0:03:01.5]} 10... Bg6 {[%clk 0:02:50.6]}
11. Ba6 {[%clk 0:03:00.8]} 11... Rb8 {[%clk 0:02:48.9]} 12. O-O {[%clk
0:02:30.1]} 12... Bc5 {[%clk 0:02:46.6]} 13. Nc4 {[%clk 0:02:26.3]} 13... O-O
{[%clk 0:02:38.3]} 14. Nxe5 {[%clk 0:02:20.6]} 14... Bxc2 {[%clk 0:02:31.7]} 15.
Bg5 {[%clk 0:02:12.3]} 15... Rb6 {[%clk 0:02:20.8]} 16. Rac1 {[%clk 0:01:57.4]}
16... Rxb2 {[%clk 0:02:00.4]} 17. Bd3 {[%clk 0:01:40.3]} 17... Bd4 {[%clk
0:01:37.6]} 18. Bxc2 {[%clk 0:01:13.8]} 18... Bxe5 {[%clk 0:01:37.1]} 19. Bb3
{[%clk 0:01:13.7]} 19... Ne4 {[%clk 0:01:31.9]} 20. Be3 {[%clk 0:01:12.8]} 20...
Nc3 {[%clk 0:01:31.8]} 21. Kh1 {[%clk 0:01:03.9]} 21... Nxa2 {[%clk 0:01:25]}
22. Bxa2 {[%clk 0:01:02.4]} 22... Rxa2 {[%clk 0:01:25.2]} 23. Rxc6 {[%clk
0:01:03.3]} 23... h6 {[%clk 0:01:16.3]} 24. f4 {[%clk 0:00:59]} 24... Bf6 {[%clk
0:01:10.4]} 25. Rc7 {[%clk 0:00:58]} 25... a5 {[%clk 0:01:09.3]} 26. Ra7 {[%clk
0:00:58.1]} 26... Re8 {[%clk 0:01:07]} 27. Bb6 {[%clk 0:00:45.4]} 27... a4
{[%clk 0:01:05.5]} 0-1

[Event "*** Titled Tuesday Blitz"]
[Site "Chess.com"]
[Date "2021.03.30"]
[Round "5"]
[White "morte-negra"]
[Black "Tea99"]
[Result "0-1"]
[WhiteElo "1894"]
[BlackElo "2295"]
[TimeControl "180+1"]
[EndTime "10:54:01 PDT"]
[Termination "Tea99 won on time"]

1. e4 {[%clk 0:01:57.5]} 1... e6 {[%clk 0:02:56.1]} 2. d4 {[%clk 0:01:56.7]}
2... d5 {[%clk 0:02:56.2]} 3. e5 {[%clk 0:01:57.1]} 3... c5 {[%clk 0:02:55.5]}
4. c3 {[%clk 0:01:57.5]} 4... Nc6 {[%clk 0:02:55.8]} 5. Nf3 {[%clk 0:01:58]}
5... Nge7 {[%clk 0:02:48.3]} 6. Na3 {[%clk 0:01:55.7]} 6... a6 {[%clk
0:02:46.3]} 7. Nc2 {[%clk 0:01:55.7]} 7... Nf5 {[%clk 0:02:40.8]} 8. Bd3 {[%clk
0:01:52.5]} 8... Be7 {[%clk 0:02:32]} 9. Bxf5 {[%clk 0:01:52]} 9... exf5 {[%clk
0:02:31.7]} 10. O-O {[%clk 0:01:47.7]} 10... O-O {[%clk 0:02:31.7]} 11. a3
{[%clk 0:01:43.8]} 11... c4 {[%clk 0:02:20.7]} 12. Rb1 {[%clk 0:01:25.4]} 12...
Na5 {[%clk 0:02:01.6]} 13. b4 {[%clk 0:01:22.9]} 13... cxb3 {[%clk 0:01:51.5]}
14. Nb4 {[%clk 0:01:18.3]} 14... Be6 {[%clk 0:01:40.7]} 15. Nd2 {[%clk
0:01:14.6]} 15... Rc8 {[%clk 0:01:37.9]} 16. Bb2 {[%clk 0:01:07.5]} 16... f4
{[%clk 0:01:25.3]} 17. Nxb3 {[%clk 0:01:04.5]} 17... Bf5 {[%clk 0:01:25.2]} 18.
Rc1 {[%clk 0:00:58.9]} 18... Nc4 {[%clk 0:01:23.9]} 19. Qe2 {[%clk 0:00:45.1]}
19... a5 {[%clk 0:01:13]} 20. Nc2 {[%clk 0:00:37.1]} 20... Nxb2 {[%clk 0:01:11]}
0-1

[Event "*** Titled Tuesday Blitz"]
[Site "Chess.com"]
[Date "2021.03.30"]
[Round "5"]
[White "RafalBRC"]
[Black "losersgame"]
[Result "0-1"]
[WhiteElo "2184"]
[BlackElo "2329"]
[TimeControl "180+1"]
[EndTime "10:54:02 PDT"]
[Termination "losersgame won by resignation"]

1. d4 {[%clk 0:03:00.9]} 1... Nf6 {[%clk 0:02:59.5]} 2. c4 {[%clk 0:03:01.8]}
2... Nc6 {[%clk 0:02:59.3]} 3. Nc3 {[%clk 0:03:02.2]} 3... e5 {[%clk 0:02:59.4]}
4. d5 {[%clk 0:03:01.8]} 4... Ne7 {[%clk 0:02:59.5]} 5. e4 {[%clk 0:03:01.7]}
5... Ng6 {[%clk 0:02:59.5]} 6. Nf3 {[%clk 0:03:01.2]} 6... Bc5 {[%clk
0:02:58.4]} 7. a3 {[%clk 0:02:56.3]} 7... a5 {[%clk 0:02:55.6]} 8. Be2 {[%clk
0:02:55.1]} 8... d6 {[%clk 0:02:54.3]} 9. Rb1 {[%clk 0:02:54.4]} 9... O-O {[%clk
0:01:53.2]} 10. b4 {[%clk 0:02:52.2]} 10... axb4 {[%clk 0:01:54.1]} 11. axb4
{[%clk 0:02:52.9]} 11... Ba7 {[%clk 0:01:51.9]} 12. O-O {[%clk 0:02:52.1]} 12...
Ne8 {[%clk 0:01:45.1]} 13. Ra1 {[%clk 0:02:52.1]} 13... Bxf2+ {[%clk 0:01:36.7]}
14. Kxf2 {[%clk 0:02:40.6]} 14... Rxa1 {[%clk 0:01:36.4]} 15. Qc2 {[%clk
0:02:37.4]} 15... f5 {[%clk 0:01:24.1]} 16. c5 {[%clk 0:02:23.6]} 16... fxe4
{[%clk 0:01:19]} 17. Nxe4 {[%clk 0:02:22.4]} 17... Bf5 {[%clk 0:01:17.8]} 18. g3
{[%clk 0:02:13.3]} 18... Nf6 {[%clk 0:01:10.1]} 19. Bd3 {[%clk 0:02:05.3]} 19...
Kh8 {[%clk 0:00:38.4]} 20. Kg2 {[%clk 0:01:59.6]} 20... Nxd5 {[%clk 0:00:34.3]}
21. Qc4 {[%clk 0:01:46.6]} 21... Be6 {[%clk 0:00:30.8]} 22. Qb5 {[%clk
0:01:42.1]} 22... Qc8 {[%clk 0:00:24.1]} 23. cxd6 {[%clk 0:01:33.9]} 23... Bh3+
{[%clk 0:00:22.8]} 24. Kg1 {[%clk 0:01:30.6]} 24... Bxf1 {[%clk 0:00:22.7]} 25.
d7 {[%clk 0:01:30.8]} 25... Qd8 {[%clk 0:00:17.1]} 26. Bxf1 {[%clk 0:01:27.8]}
26... Rxc1 {[%clk 0:00:16.2]} 27. Nfg5 {[%clk 0:01:25.9]} 27... Rcxf1+ {[%clk
0:00:13.6]} 28. Kg2 {[%clk 0:01:25.8]} 28... c6 {[%clk 0:00:13.5]} 29. Qc5
{[%clk 0:01:21.7]} 29... Qxd7 {[%clk 0:00:12.4]} 0-1